bitfinex/quotes_BTCUSD_20251019
["timestamp","ask_amount","ask_price","bid_price","bid_amount"]
[1760834094690,0.52644659,107270.0,107250.0,0.02844775]
[1760834094846,0.52644659,107270.0,107250.0,0.12204775]
[1760834095389,0.34,107260.0,107250.0,0.12204775]
[1760834095558,0.34,107260.0,107250.0,0.02844775]
[1760834095958,0.5264628,107260.0,107250.0,0.02844775]
[1760834096282,0.52808793,107260.0,107250.0,0.02844775]
[1760834096768,0.34162513,107260.0,107250.0,0.02844775]
[1760834097155,0.35625184,107260.0,107250.0,0.02844775]
[1760834097959,0.35462671,107260.0,107250.0,0.02844775]
[1760834099059,0.01462671,107260.0,107250.0,0.02844775]
[1760834100793,5.01462671,107260.0,107250.0,0.0004]
[1760834101036,5.01625189,107260.0,107250.0,0.0004]
[1760834104593,0.01625189,107260.0,107250.0,0.0004]
[1760834104884,0.00162518,107260.0,107250.0,0.0004]
[1760834107779,0.01625226,107260.0,107250.0,0.0004]
[1760834110412,0.01625226,107260.0,107250.0,0.094]
[1760834111042,0.01625226,107260.0,107250.0,0.1220484]
[1760834111421,0.01462708,107260.0,107250.0,0.1220484]
[1760834111623,0.01462708,107260.0,107250.0,0.14069641]
[1760834112280,5.0,107270.0,107250.0,0.14069641]
[1760834112437,0.01462592,107260.0,107250.0,0.14084544]
[1760834113335,0.01462592,107260.0,107250.0,0.12219743]
[1760834114005,0.01625106,107260.0,107250.0,0.12219743]
[1760834114660,0.01625106,107260.0,107250.0,0.09414903]
[1760834115490,0.01625106,107260.0,107250.0,0.00054903]
[1760834116379,0.54271386,107260.0,107250.0,0.00054903]
[1760834116574,0.52808794,107260.0,107250.0,0.00054903]
[1760834117002,5.52808794,107260.0,107250.0,0.00054903]
[1760834118092,5.55233387,107260.0,107250.0,0.00054903]
[1760834118468,5.56696145,107260.0,107250.0,0.00054903]
[1760834120688,5.58438843,107260.0,107250.0,0.00054903]
[1760834121911,5.58601377,107260.0,107250.0,0.00054903]
[1760834127932,5.57138619,107260.0,107250.0,0.00054903]
[1760834130380,5.35742698,107260.0,107250.0,0.00054903]
[1760834130829,5.55851766,107260.0,107250.0,0.00054903]
[1760834132905,5.55853641,107260.0,107250.0,0.00054903]
[1760834133096,5.56016171,107260.0,107250.0,0.00054903]
[1760834133320,5.22016171,107260.0,107250.0,0.00054903]
[1760834134159,5.22016119,107260.0,107250.0,0.00054903]
[1760834134815,0.22016119,107260.0,107250.0,0.00054903]
[1760834135062,0.03369839,107260.0,107250.0,0.00054903]
[1760834135491,0.01625318,107260.0,107250.0,0.00054903]
[1760834136385,0.04928792,107270.0,107250.0,0.00054903]
[1760834136603,0.0016252,107260.0,107250.0,0.00054903]
[1760834139616,0.35625218,107260.0,107250.0,0.00054903]
[1760834139821,0.01625218,107260.0,107250.0,0.00054903]
[1760834141860,0.01462698,107260.0,107250.0,0.00054903]
[1760834142476,0.01462698,107260.0,107250.0,0.02859879]
[1760834144027,0.20108978,107260.0,107250.0,0.02859879]
[1760834144213,0.1864628,107260.0,107250.0,0.02859879]
[1760834144410,0.2039143,107260.0,107250.0,0.00054903]
[1760834144631,0.20553951,107260.0,107250.0,0.00054903]
[1760834145409,5.20553951,107260.0,107250.0,0.00054903]
[1760834147244,5.18808801,107260.0,107250.0,0.00054903]
[1760834147602,5.20271552,107260.0,107250.0,0.00054903]
[1760834148386,0.18648018,107250.0,107240.0,0.00218445]
[1760834148603,5.18652992,107250.0,107240.0,0.00218445]
[1760834151504,5.20560606,107250.0,107240.0,0.00218445]
[1760834152116,5.52815525,107250.0,107240.0,0.00218445]
[1760834153052,5.54560604,107250.0,107240.0,0.00218445]
[1760834160319,5.56023519,107250.0,107240.0,0.00218445]
[1760834161271,5.37375501,107250.0,107240.0,0.00218445]
[1760834161514,5.35630422,107250.0,107240.0,0.00218445]
[1760834161720,0.35630422,107250.0,107240.0,0.00218445]
[1760834162119,0.5427844,107250.0,107240.0,0.00218445]
[1760834162245,0.54115907,107250.0,107240.0,0.00218445]
[1760834162469,0.38634422,107250.0,107240.0,0.00218445]
[1760834163119,0.20110933,107250.0,107240.0,0.00218445]
[1760834164689,0.20273465,107250.0,107240.0,0.00218445]
[1760834165321,0.1881055,107250.0,107240.0,0.00218445]
[1760834165708,0.00162532,107250.0,107240.0,0.00218445]
[1760834166174,0.1881055,107250.0,107240.0,0.00218445]
[1760834167362,0.00162532,107250.0,107240.0,0.00218445]
[1760834168160,0.01462755,107250.0,107240.0,0.00218445]
[1760834168761,0.52646326,107260.0,107240.0,0.00218445]
[1760834168975,0.54391715,107260.0,107240.0,0.00218445]
[1760834169628,5.0,107250.0,107240.0,0.00218445]
[1760834170103,5.0,107260.0,107240.0,0.00218445]
[1760834170291,5.0,107250.0,107240.0,0.00218445]
[1760834171218,0.00162526,107250.0,107240.0,0.00218445]
[1760834171417,5.0,107250.0,107240.0,0.00218445]
[1760834171627,0.00162525,107250.0,107240.0,0.00218445]
[1760834178142,0.18810543,107250.0,107240.0,0.00218445]
[1760834178329,0.01909144,107250.0,107240.0,0.00218445]
[1760834178694,5.22020034,107250.0,107240.0,0.00218445]
[1760834179234,5.21857509,107250.0,107240.0,0.00218445]
[1760834181352,5.55857509,107250.0,107240.0,0.00218445]
[1760834184233,5.67184449,107250.0,107240.0,0.00218445]
[1760834184564,5.61362035,107250.0,107240.0,0.00218445]
[1760834184705,5.59899163,107250.0,107240.0,0.00218445]
[1760834187669,5.613623,107250.0,107240.0,0.00218445]
[1760834190632,5.59476002,107250.0,107240.0,0.00218445]
[1760834193882,5.55857774,107250.0,107240.0,0.00218445]
[1760834195480,5.54111155,107250.0,107240.0,0.00218445]
[1760834196102,5.35463137,107250.0,107240.0,0.00218445]
[1760834196311,5.01463137,107250.0,107240.0,0.00218445]
[1760834197470,5.202737,107250.0,107240.0,0.00218445]
[1760834198795,5.20111155,107250.0,107240.0,0.00218445]
[1760834200250,5.54111155,107250.0,107240.0,0.00218445]
[1760834201371,5.56698262,107250.0,107240.0,0.00218445]
[1760834201642,5.5686081,107250.0,107240.0,0.00218445]
[1760834201801,5.6991968,107250.0,107240.0,0.00218445]
[1760834202001,5.6031649,107250.0,107240.0,0.00218445]
[1760834202206,5.60479042,107250.0,107240.0,0.00218445]
[1760834206128,5.63340517,107250.0,107240.0,0.00218445]
[1760834206437,5.6371467,107250.0,107240.0,0.00218445]
[1760834206623,5.62251533,107250.0,107240.0,0.00218445]
[1760834207356,5.63995345,107250.0,107240.0,0.00218445]
[1760834207524,5.48286191,107250.0,107240.0,0.00218445]
[1760834208546,5.29194953,107250.0,107240.0,0.00218445]
[1760834209048,5.29032401,107250.0,107240.0,0.00218445]
[1760834209587,5.30495585,107250.0,107240.0,0.00218445]
[1760834210400,5.2812188,107250.0,107240.0,0.00218445]
[1760834211739,5.28284444,107250.0,107240.0,0.00218445]
[1760834213644,5.25697337,107250.0,107240.0,0.00218445]
[1760834214377,5.24234153,107250.0,107240.0,0.00218445]
[1760834215224,5.2682126,107250.0,107240.0,0.00218445]
[1760834217261,5.27910194,107250.0,107240.0,0.00218445]
[1760834218496,5.2774763,107250.0,107240.0,0.00218445]
[1760834220674,5.28121786,107250.0,107240.0,0.00218445]
[1760834221281,5.28284348,107250.0,107240.0,0.00218445]
[1760834221513,5.28121786,107250.0,107240.0,0.00218445]
[1760834221710,5.28284348,107250.0,107240.0,0.00218445]
[1760834224123,4.900547,107240.0,107230.0,0.0004]
[1760834224322,4.91798512,107240.0,107230.0,0.0004]
[1760834224769,4.92172685,107240.0,107230.0,0.0004]
[1760834227617,5.26172685,107240.0,107230.0,0.0004]
[1760834229620,5.26172685,107240.0,107230.0,0.00075777]
[1760834230672,5.2763594,107240.0,107230.0,0.00075777]
[1760834230825,5.2467466,107240.0,107230.0,0.00075777]
[1760834233488,5.02406675,107240.0,107230.0,0.00075777]
[1760834233691,0.35743812,107240.0,107230.0,0.00075777]
[1760834233889,0.01743812,107240.0,107230.0,0.00075777]
[1760834234093,5.0,107240.0,107230.0,0.00075777]
[1760834234300,0.01743812,107240.0,107230.0,0.00075777]
[1760834234495,5.0,107240.0,107230.0,0.00075777]
[1760834234728,0.01743812,107240.0,107230.0,0.00075777]
[1760834235004,0.00162552,107240.0,107230.0,0.00075777]
[1760834235800,0.34162552,107240.0,107230.0,0.00075777]
[1760834236820,0.35625532,107240.0,107230.0,0.00075777]
[1760834238043,0.54275289,107240.0,107230.0,0.00075777]
[1760834238244,5.56019682,107240.0,107230.0,0.00075777]
[1760834238811,5.5585713,107240.0,107230.0,0.00075777]
[1760834241457,5.56019688,107240.0,107230.0,0.00075777]
[1760834243338,5.6546033,107240.0,107230.0,0.00075777]
[1760834243538,5.67341704,107240.0,107230.0,0.00075777]
[1760834243742,5.56438082,107240.0,107230.0,0.00075777]
[1760834246830,5.57901291,107240.0,107230.0,0.00075777]
[1760834249868,5.61519519,107240.0,107230.0,0.00075777]
[1760834250077,5.61893717,107240.0,107230.0,0.00075777]
[1760834254195,5.60430508,107240.0,107230.0,0.00075777]
[1760834255496,0.18653236,107220.0,107210.0,0.0004]
[1760834255721,5.20397629,107220.0,107210.0,0.0004]
[1760834255867,5.22279003,107220.0,107210.0,0.0004]
[1760834256082,5.24860311,107210.0,107200.0,0.0612]
[1760834256291,5.26604704,107210.0,107200.0,0.0612]
[1760834256548,5.28456172,107210.0,107200.0,0.0612]
[1760834256860,5.28456172,107210.0,107200.0,0.06134939]
[1760834257064,5.30829877,107210.0,107200.0,0.06134939]
[1760834257349,5.32293487,107210.0,107200.0,0.06134939]
[1760834257494,5.32293487,107210.0,107190.0,0.0004]
[1760834257495,0.56274944,107200.0,107190.0,0.0004]
[1760834257694,5.5975741,107200.0,107190.0,0.00044974]
[1760834260395,5.41100694,107200.0,107190.0,0.00044974]
[1760834260705,5.39362621,107200.0,107190.0,0.00044974]
[1760834260834,5.0,107200.0,107190.0,0.00044974]
[1760834261232,5.34,107200.0,107190.0,0.00044974]
[1760834261428,0.34162615,107200.0,107190.0,0.00188143]
[1760834261632,0.00162615,107200.0,107190.0,0.18846599]
[1760834262306,0.00162615,107200.0,107190.0,0.00188143]
[1760834263930,0.00162615,107200.0,107190.0,0.20712444]
[1760834264084,0.00162615,107200.0,107190.0,0.18846599]
[1760834266325,0.00162615,107200.0,107190.0,0.21652985]
[1760834266535,0.00162615,107200.0,107190.0,0.31040985]
[1760834269327,0.01463242,107210.0,107190.0,0.31040985]
[1760834269552,0.01463242,107210.0,107200.0,0.20522387]
[1760834269753,0.01463242,107210.0,107200.0,0.18656716]
[1760834271251,0.01463242,107210.0,107200.0,0.21462784]
[1760834271809,0.01625831,107210.0,107200.0,0.21462784]
[1760834273297,0.00162589,107210.0,107200.0,0.21462784]
[1760834274864,0.00162589,107210.0,107200.0,0.21570151]
[1760834279397,0.01463114,107220.0,107200.0,0.21570151]
[1760834279597,0.01463114,107220.0,107210.0,0.11249497]
[1760834280014,0.01463114,107220.0,107210.0,0.14055221]
[1760834282929,0.01463114,107220.0,107210.0,0.02805724]
[1760834283158,0.01463114,107220.0,107210.0,0.12185724]
[1760834283295,0.01625698,107220.0,107210.0,0.12185724]
[1760834284878,0.01625698,107220.0,107210.0,0.12257296]
[1760834287730,0.00162584,107220.0,107210.0,0.12257296]
[1760834287936,0.00162584,107220.0,107210.0,0.02877296]
[1760834288108,0.00162584,107220.0,107210.0,0.09451572]
[1760834288311,0.00162584,107220.0,107210.0,0.00071572]
[1760834290145,0.34162584,107220.0,107210.0,0.00071572]
[1760834290542,0.35625888,107220.0,107210.0,0.00071572]
[1760834292230,0.35463304,107220.0,107210.0,0.00071572]
[1760834293726,0.01463304,107220.0,107210.0,0.00071572]
[1760834294500,0.01463304,107220.0,107210.0,0.18726548]
[1760834294644,0.01625894,107220.0,107210.0,0.00071572]
[1760834295045,0.01625894,107220.0,107210.0,0.01937069]
[1760834297075,0.0016259,107220.0,107210.0,0.20592045]
[1760834297566,0.0016259,107220.0,107210.0,0.2339784]
[1760834297782,0.0016259,107220.0,107210.0,0.21532343]
[1760834301617,0.01463042,107230.0,107210.0,0.21532343]
[1760834301806,0.01463042,107230.0,107220.0,0.11245323]
[1760834302224,0.01463042,107230.0,107220.0,0.14050874]
[1760834304198,0.01625617,107230.0,107220.0,0.14050874]
[1760834304354,0.00162575,107230.0,107220.0,0.3270411]
[1760834304584,0.00162575,107230.0,107220.0,0.12185551]
[1760834304807,0.00162575,107230.0,107220.0,0.14050874]
[1760834305090,0.00162575,107230.0,107220.0,0.12185551]
[1760834305300,0.34162575,107230.0,107190.0,0.34366289]
[1760834305515,0.34162575,107230.0,107210.0,0.02805871]
[1760834305516,0.34,107220.0,107210.0,0.02805871]
[1760834305865,0.34,107220.0,107200.0,0.28036714]
[1760834306067,0.34,107220.0,107210.0,0.01865497]
[1760834306672,0.00162575,107230.0,107210.0,0.01865497]
[1760834307133,0.01907117,107230.0,107220.0,0.00035783]
[1760834307343,0.03370248,107230.0,107220.0,0.00035783]
[1760834308563,0.05055777,107240.0,107220.0,0.00035783]
[1760834308768,5.0,107230.0,107220.0,0.00035783]
[1760834308966,5.18814085,107230.0,107220.0,0.00035783]
[1760834309378,5.18651496,107230.0,107220.0,0.00035783]
[1760834311732,5.52651496,107230.0,107220.0,0.00035783]
[1760834311938,5.52814094,107230.0,107220.0,0.00035783]
[1760834313770,5.32820247,107230.0,107220.0,0.00035783]
[1760834314613,0.34162598,107230.0,107220.0,0.00035783]
[1760834314822,0.52814094,107230.0,107220.0,0.00035783]
[1760834315029,0.34162598,107230.0,107220.0,0.00035783]
[1760834315917,0.00162598,107230.0,107220.0,0.01901106]
[1760834319148,0.01625709,107230.0,107220.0,0.01901106]
[1760834319596,0.01625709,107230.0,107220.0,0.01250817]
[1760834320201,0.01625709,107230.0,107220.0,0.01901106]
[1760834320394,0.01625709,107230.0,107220.0,0.02841103]
[1760834320605,0.01625709,107230.0,107220.0,0.00035783]
[1760834323584,0.01463111,107230.0,107220.0,0.00035783]
[1760834325084,0.20308374,107240.0,107220.0,0.00035783]
[1760834325240,0.22050313,107240.0,107220.0,0.00035783]
[1760834325440,0.03400554,107240.0,107220.0,0.00035783]
[1760834326229,0.03563137,107240.0,107220.0,0.00035783]
[1760834327289,0.03563137,107240.0,107220.0,0.01901106]
[1760834328238,5.0,107230.0,107220.0,0.00035783]
[1760834330380,0.0174265,107230.0,107220.0,0.00035783]
[1760834331576,0.3574265,107230.0,107220.0,0.00035783]
[1760834332113,0.54394146,107230.0,107220.0,0.00035783]
[1760834332322,5.54394146,107230.0,107220.0,0.00035783]
[1760834336884,5.54556743,107230.0,107220.0,0.00035783]
[1760834337336,5.56020062,107230.0,107220.0,0.00035783]
[1760834341053,5.56020054,107230.0,107220.0,0.00035783]
[1760834342435,5.37368558,107230.0,107220.0,0.00035783]
[1760834342654,5.56020054,107230.0,107220.0,0.00035783]
[1760834343060,5.37368558,107230.0,107220.0,0.00035783]
[1760834343295,0.03368558,107230.0,107220.0,0.00035783]
[1760834343496,0.01625916,107230.0,107220.0,0.00035783]
[1760834343650,0.00162597,107230.0,107220.0,0.00035783]
[1760834343867,0.2030761,107240.0,107220.0,0.00035783]
[1760834344079,0.22050758,107240.0,107220.0,0.00035783]
[1760834344263,0.03400964,107240.0,107220.0,0.00035783]
[1760834344490,5.0,107230.0,107220.0,0.00035783]
[1760834346559,0.00162583,107230.0,107220.0,0.00035783]
[1760834346910,0.01625664,107230.0,107220.0,0.00035783]
[1760834349431,0.2027716,107230.0,107220.0,0.00035783]
[1760834349644,0.2202031,107230.0,107220.0,0.00035783]
[1760834353608,5.2202031,107230.0,107220.0,0.00035783]
[1760834353845,5.33103076,107230.0,107220.0,0.00035783]
[1760834354077,5.23662434,107230.0,107220.0,0.00035783]
[1760834354309,5.26306352,107230.0,107220.0,0.00035783]
[1760834355181,5.26306259,107230.0,107220.0,0.00035783]
[1760834356700,5.26468866,107230.0,107220.0,0.00035783]
[1760834357081,5.60468866,107230.0,107220.0,0.00035783]
[1760834358689,5.59005785,107230.0,107220.0,0.00035783]
[1760834359954,5.68446427,107230.0,107220.0,0.00035783]
[1760834360094,5.59005785,107230.0,107220.0,0.00035783]
[1760834361554,5.60469308,107230.0,107220.0,0.00035783]
[1760834364176,5.58827184,107230.0,107220.0,0.00035783]
[1760834368532,5.60432654,107230.0,107220.0,0.00035783]
[1760834368656,5.61555958,107230.0,107220.0,0.00035783]
[1760834370727,5.60092435,107230.0,107220.0,0.00035783]
[1760834373218,5.93843077,107230.0,107220.0,0.00035783]
[1760834373444,5.52656716,107200.0,107190.0,0.00044974]
[1760834373657,5.35743057,107200.0,107190.0,0.00044974]
[1760834373980,5.35905673,107200.0,107190.0,0.00044974]
[1760834374186,5.35743057,107200.0,107190.0,0.00044974]
[1760834374806,5.55863364,107200.0,107190.0,0.00044974]
[1760834376477,5.56025983,107200.0,107190.0,0.00044974]
[1760834376849,5.37369267,107200.0,107190.0,0.00044974]
[1760834377625,5.37206648,107200.0,107190.0,0.00044974]
[1760834378728,5.21384825,107200.0,107190.0,0.00044974]
[1760834379072,5.21384825,107200.0,107190.0,0.00152355]
[1760834381025,5.21547443,107200.0,107190.0,0.00152355]
[1760834381634,5.40204159,107200.0,107190.0,0.00152355]
[1760834384035,5.38740568,107200.0,107190.0,0.00152355]
[1760834385204,5.41469342,107200.0,107190.0,0.00152355]
[1760834388342,5.38740568,107200.0,107190.0,0.00152355]
[1760834388685,5.40204184,107200.0,107190.0,0.00152355]
[1760834391751,5.21547468,107200.0,107190.0,0.00152355]
[1760834392073,0.03369291,107200.0,107190.0,0.00152355]
[1760834393030,0.03369291,107200.0,107190.0,0.020182]
[1760834393231,0.00162618,107200.0,107190.0,0.020182]
[1760834393742,5.0,107220.0,107190.0,0.020182]
[1760834394050,5.0,107210.0,107190.0,0.01910819]
[1760834394297,0.01744865,107210.0,107200.0,0.00071581]
[1760834394590,0.03208244,107210.0,107200.0,0.00071581]
[1760834395160,0.0329752,107210.0,107180.0,0.02709762]
[1760834395371,0.0329752,107210.0,107180.0,0.01826581]
[1760834396001,0.0329752,107210.0,107180.0,0.20486696]
[1760834396233,0.03460125,107210.0,107180.0,0.28089943]
[1760834397218,0.03460125,107210.0,107190.0,0.01865845]
[1760834398837,0.22115278,107210.0,107190.0,0.01865845]
[1760834399043,0.22115278,107210.0,107180.0,0.00049828]
[1760834399044,5.0,107200.0,107180.0,0.00049828]
[1760834399162,0.00089276,107190.0,107180.0,0.01915847]
[1760834399572,5.0,107200.0,107180.0,0.01915847]
[1760834399800,0.01626149,107190.0,107180.0,0.01915847]
[1760834403376,0.01626149,107190.0,107180.0,0.00049828]
[1760834403666,0.01626149,107190.0,107180.0,0.01915847]
[1760834404829,0.01626149,107190.0,107180.0,0.01987448]
[1760834405903,0.01626149,107190.0,107180.0,0.00121429]
[1760834406113,0.00162613,107190.0,107180.0,0.00121429]
[1760834406535,0.00162613,107190.0,107180.0,0.01987448]
[1760834409337,0.01463457,107190.0,107180.0,0.01987448]
[1760834409541,0.01626065,107190.0,107180.0,0.01987448]
[1760834409750,0.01463457,107190.0,107180.0,0.01987448]
[1760834412242,0.0162606,107190.0,107180.0,0.01987448]
[1760834412740,0.0162606,107190.0,107180.0,0.00121429]
[1760834412961,0.0162606,107190.0,107180.0,0.01987448]
[1760834414066,0.00162603,107190.0,107180.0,0.01987448]
[1760834414649,0.00162603,107190.0,107180.0,0.20647645]
[1760834414887,0.00162603,107190.0,107180.0,0.18781626]
[1760834416799,0.00162603,107190.0,107180.0,0.21587704]
[1760834417011,0.00162603,107190.0,107180.0,0.39935932]
[1760834417167,0.00162603,107190.0,107180.0,0.84800501]
[1760834417382,0.00235873,107230.0,107200.0,0.19588853]
[1760834417593,0.01979549,107230.0,107210.0,0.11245497]
[1760834418677,0.03442678,107230.0,107210.0,0.11245497]
[1760834419033,0.37442678,107230.0,107210.0,0.11245497]
[1760834419256,0.03352887,107230.0,107210.0,0.11245497]
[1760834419414,0.01699002,107230.0,107210.0,0.11245497]
[1760834419878,0.20479491,107240.0,107210.0,0.11245497]
[1760834420042,5.0,107230.0,107210.0,0.11245497]
[1760834424776,0.18651522,107230.0,107200.0,0.02805837]
[1760834425071,0.21320125,107230.0,107200.0,0.09376]
[1760834425838,5.0,107220.0,107200.0,0.09376]
[1760834427121,0.34,107210.0,107190.0,0.02841705]
[1760834427332,0.34,107210.0,107190.0,0.09415797]
[1760834428201,0.52655043,107210.0,107190.0,0.09415797]
[1760834428400,5.0,107200.0,107190.0,0.09415797]
[1760834429016,5.0,107200.0,107190.0,0.00035797]
[1760834430516,0.00162605,107200.0,107190.0,0.00035797]
[1760834433613,0.18819321,107200.0,107190.0,0.00035797]
[1760834434586,5.20559674,107200.0,107190.0,0.00035797]
[1760834436890,5.22023282,107200.0,107190.0,0.00035797]
[1760834437557,5.03366566,107200.0,107190.0,0.00035797]
[1760834437763,0.03366566,107200.0,107190.0,0.00035797]
[1760834438502,0.01626213,107200.0,107190.0,0.00035797]
[1760834448855,0.01463608,107200.0,107190.0,0.00035797]
[1760834449069,5.0,107210.0,107190.0,0.00035797]
[1760834449244,5.01739342,107210.0,107190.0,0.00035797]
[1760834449450,0.01739342,107210.0,107190.0,0.00035797]
[1760834451261,0.0190195,107210.0,107190.0,0.00035797]
[1760834451612,0.20557045,107210.0,107190.0,0.00035797]
[1760834452106,0.0190195,107210.0,107190.0,0.00035797]
[1760834453197,0.0336537,107210.0,107190.0,0.01901642]
[1760834455274,0.0190195,107210.0,107190.0,0.01901642]
[1760834457140,0.0190195,107210.0,107190.0,0.00035797]
[1760834458112,0.03365382,107210.0,107190.0,0.00035797]
[1760834459791,0.22020465,107210.0,107190.0,0.00035797]
[1760834459953,5.0,107200.0,107190.0,0.00035797]
[1760834460161,0.01739342,107200.0,107190.0,0.00035797]
[1760834460381,5.0,107200.0,107190.0,0.00035797]
[1760834460590,0.01739342,107200.0,107190.0,0.00035797]
[1760834460782,5.01739342,107200.0,107190.0,0.00035797]
[1760834461002,0.01739342,107200.0,107190.0,0.00035797]
[1760834461199,5.01739342,107200.0,107190.0,0.00035797]
[1760834461374,0.01739342,107200.0,107190.0,0.00035797]
[1760834461565,0.21857857,107210.0,107190.0,0.00035797]
[1760834461766,5.0,107200.0,107190.0,0.00035797]
[1760834461974,0.01739342,107200.0,107190.0,0.00035797]
[1760834462210,0.21857857,107210.0,107190.0,0.00035797]
[1760834462525,5.0,107200.0,107190.0,0.00035797]
[1760834462701,0.01739342,107200.0,107190.0,0.00035797]
[1760834462901,5.01739342,107200.0,107190.0,0.00035797]
[1760834463106,0.01739342,107200.0,107190.0,0.00035797]
[1760834463265,5.0,107200.0,107190.0,0.00035797]
[1760834463475,0.01901953,107200.0,107190.0,0.00035797]
[1760834464129,5.20558669,107200.0,107170.0,0.09376]
[1760834464345,5.0,107190.0,107170.0,0.11242193]
[1760834464545,0.01739342,107190.0,107170.0,0.11242193]
[1760834464779,5.0,107190.0,107180.0,0.00182434]
[1760834464950,0.01739342,107190.0,107180.0,0.00182434]
[1760834465155,5.0,107190.0,107180.0,0.00182434]
[1760834467194,5.01463588,107190.0,107180.0,0.00182434]
[1760834467391,0.01463588,107190.0,107180.0,0.00182434]
[1760834470045,0.01626202,107190.0,107180.0,0.00182434]
[1760834470198,0.01463588,107190.0,107180.0,0.00182434]
[1760834472491,0.01463588,107190.0,107180.0,0.02048453]
[1760834472699,0.01626196,107190.0,107180.0,0.02048453]
[1760834475195,0.01626196,107190.0,107180.0,0.2070865]
[1760834475550,0.01626196,107190.0,107180.0,0.23515012]
[1760834475683,0.00162608,107190.0,107180.0,0.21648993]
[1760834479809,0.00049766,107200.0,107190.0,0.18658456]
[1760834480011,0.00049766,107200.0,107190.0,0.28034456]
[1760834480224,0.01512958,107200.0,107190.0,0.28034456]
[1760834482047,0.01512958,107200.0,107190.0,0.3084039]
[1760834482436,0.01675546,107200.0,107190.0,0.3084039]
[1760834482642,0.01675546,107200.0,107190.0,0.02805934]
[1760834482870,0.01675546,107200.0,107190.0,0.12181934]
[1760834483316,0.01675546,107200.0,107190.0,0.02805934]
[1760834483498,0.01675546,107200.0,107190.0,0.12185934]
[1760834484088,0.00212354,107200.0,107190.0,0.12185934]
[1760834484690,0.00212354,107200.0,107190.0,0.14051779]
[1760834485251,0.00212354,107200.0,107190.0,0.14198403]
[1760834485954,0.00212354,107200.0,107190.0,0.02952558]
[1760834486132,0.00212354,107200.0,107190.0,0.09526624]
[1760834487415,0.01675673,107200.0,107190.0,0.09526624]
[1760834490251,0.01513085,107200.0,107190.0,0.09526624]
[1760834490784,0.01513085,107200.0,107190.0,0.00146624]
[1760834490995,0.01513085,107200.0,107190.0,0.09522624]
[1760834491345,0.01513085,107200.0,107190.0,0.00146624]
[1760834491538,0.01513085,107200.0,107190.0,0.09522624]
[1760834493207,0.00049766,107200.0,107190.0,0.09522624]
[1760834493406,0.00212375,107200.0,107190.0,0.09522624]
[1760834494575,0.00212375,107200.0,107190.0,0.00146624]
[1760834497685,0.01675862,107200.0,107190.0,0.00146624]
[1760834499152,5.19585973,107220.0,107190.0,0.00146624]
[1760834499368,0.0016261,107200.0,107190.0,0.00146624]
[1760834499570,0.50009279,107220.0,107190.0,0.02012469]
[1760834499752,0.00162605,107200.0,107190.0,0.02012469]
[1760834500091,5.0,107210.0,107190.0,0.02012469]
[1760834500361,5.0,107200.0,107190.0,0.20670925]
[1760834500561,5.0,107210.0,107190.0,0.1880508]
[1760834500714,5.0,107200.0,107190.0,0.1880508]
[1760834501338,5.0,107200.0,107190.0,0.00146624]
[1760834501542,0.01463409,107210.0,107190.0,0.02012469]
[1760834501746,0.03205286,107210.0,107190.0,0.02012469]
[1760834502352,0.03367891,107210.0,107190.0,0.02012469]
[1760834502536,0.01904482,107210.0,107190.0,0.02012469]
[1760834505325,0.01904482,107210.0,107190.0,0.20670852]
[1760834505530,0.00162605,107210.0,107190.0,0.18805007]
[1760834506752,0.00162605,107210.0,107190.0,0.00146624]
[1760834506977,0.00162605,107210.0,107190.0,0.02012469]
[1760834508031,0.00162605,107210.0,107190.0,0.11388469]
[1760834508433,0.01625931,107210.0,107190.0,0.11388469]
[1760834508895,0.01463326,107210.0,107190.0,0.11388469]
[1760834511279,0.50009279,107220.0,107190.0,0.11388469]
[1760834511488,5.0,107210.0,107190.0,0.11388469]
[1760834512501,0.01743415,107210.0,107190.0,0.11388469]
[1760834512706,0.20398433,107210.0,107190.0,0.02012469]
[1760834512907,5.0,107200.0,107190.0,0.00146624]
[1760834513117,0.01743415,107200.0,107190.0,0.00146624]
[1760834513510,0.01906027,107200.0,107190.0,0.00146624]
[1760834518281,0.01906027,107200.0,107180.0,0.09356384]
[1760834518471,0.01906027,107200.0,107170.0,0.04672762]
[1760834518472,0.03369565,107200.0,107170.0,0.04672762]
[1760834518704,0.03369565,107200.0,107170.0,0.14048762]
[1760834518904,0.03369565,107200.0,107170.0,0.33643753]
[1760834519064,0.03369565,107200.0,107170.0,0.3177756]
[1760834519247,0.03369565,107200.0,107180.0,0.01622137]
[1760834519773,0.0162615,107200.0,107180.0,0.01622137]
[1760834520708,0.0162615,107200.0,107180.0,0.2028226]
[1760834520913,0.0162615,107200.0,107180.0,0.18660123]
[1760834521117,0.0162615,107200.0,107170.0,0.3177756]
[1760834521261,0.0162615,107200.0,107180.0,0.01866019]
[1760834522349,0.0162615,107200.0,107190.0,0.09376]
[1760834523090,0.01463538,107200.0,107190.0,0.09376]
[1760834523715,0.01463538,107200.0,107190.0,0.11241845]
[1760834524240,5.0,107210.0,107190.0,0.11241845]
[1760834524401,0.01743283,107210.0,107190.0,0.11241845]
[1760834525656,0.01905887,107210.0,107190.0,0.11241845]
[1760834527237,0.01905887,107210.0,107190.0,0.29900095]
[1760834527445,0.00162604,107210.0,107190.0,0.2803425]
[1760834527800,0.00162604,107210.0,107200.0,0.01865671]
[1760834528729,0.01625902,107210.0,107190.0,0.09376]
[1760834529275,0.01625902,107210.0,107190.0,0.11241845]
[1760834530250,0.01463298,107210.0,107190.0,0.11241845]
[1760834533043,0.01625899,107210.0,107190.0,0.11241845]
[1760834534554,0.18656716,107200.0,107190.0,0.01865845]
[1760834534893,0.18817728,107210.0,107180.0,0.09376]
[1760834535065,0.18817728,107210.0,107180.0,0.11242019]
[1760834535066,0.00134575,107200.0,107180.0,0.11242019]
[1760834536430,0.01876997,107200.0,107180.0,0.11242019]
[1760834538571,0.01876997,107200.0,107180.0,0.09376]
[1760834540018,0.01742422,107200.0,107190.0,0.01865845]
[1760834540261,0.50009279,107220.0,107190.0,0.01865845]
[1760834540262,5.00134575,107210.0,107190.0,0.01865845]
[1760834540472,0.01742815,107210.0,107190.0,0.01865845]
[1760834540653,0.0187739,107210.0,107190.0,0.01865845]
[1760834541227,0.02039993,107210.0,107190.0,0.01865845]
[1760834544014,0.02040146,107210.0,107190.0,0.01865845]
[1760834544228,0.020402,107210.0,107190.0,0.01865845]
[1760834545765,0.00162603,107210.0,107190.0,0.20523888]
[1760834545963,0.00162603,107210.0,107190.0,0.18658043]
[1760834546174,0.00162603,107210.0,107200.0,0.01865671]
[1760834546905,0.00162603,107210.0,107200.0,0.09376]
[1760834548646,0.01625876,107210.0,107200.0,0.09376]
[1760834549046,0.01463273,107210.0,107200.0,0.09376]
[1760834549196,5.0,107220.0,107200.0,0.09376]
[1760834549396,0.03206787,107220.0,107200.0,0.09376]
[1760834549954,0.01743452,107220.0,107200.0,0.09376]
[1760834551889,0.01906048,107220.0,107200.0,0.09376]
[1760834552064,0.01906048,107220.0,107200.0,0.11241671]